bitfinex/quotes_SOLUSD_20250814
["timestamp","ask_amount","ask_price","bid_price","bid_amount"]
[1755187865275,2.16451971,192.85,192.82,45.46]
[1755187865481,2.16451971,192.84,192.81,5.18645298]
[1755187865645,2.16451971,192.8,192.76,5.18779829]
[1755187865844,2.16451971,192.82,192.76,50.60779829]
[1755187866061,2.16451971,192.8,192.76,50.60779829]
[1755187866277,2.16451971,192.84,192.79,18.48401902]
[1755187866463,2.16451971,192.88,192.83,18.48401902]
[1755187866648,2.16451971,192.93,192.87,18.48401902]
[1755187866962,2.16451971,192.97,192.93,5.18322707]
[1755187867381,2.16451971,192.96,192.93,5.18322707]
[1755187867668,2.16451971,192.97,192.93,69.08724609]
[1755187868053,2.16451971,192.96,192.93,50.60322707]
[1755187868250,0.06,193.02,192.98,41.10621557]
[1755187868472,0.06,193.02,193.01,18.48401902]
[1755187868677,21.34853873,193.11,193.01,19.20401902]
[1755187868855,0.7,193.11,193.06,18.48401902]
[1755187869180,2.16451971,193.08,193.06,45.38]
[1755187869481,2.22451971,193.14,193.07,19.20401902]
[1755187869779,0.06,193.14,193.13,18.48401902]
[1755187869980,0.06,193.14,193.13,63.80401902]
[1755187870153,0.06,193.14,193.13,63.78401902]
[1755187870780,1e-08,193.14,193.13,85.41130585]
[1755187871274,1e-08,193.14,193.13,5.17785947]
[1755187871450,1e-08,193.14,193.13,29.46294975]
[1755187871653,1e-08,193.14,193.06,24.28509028]
[1755187871654,2.16451971,193.11,193.06,24.28509028]
[1755187871876,2.16451971,193.1,193.07,45.24]
[1755187872166,2.16451971,193.07,193.05,45.3]
[1755187872369,1e-08,193.14,192.93,0.72]
[1755187872370,2.16451971,193.02,192.93,0.72]
[1755187872550,2.16451971,192.99,192.89,5.90430193]
[1755187872885,2.16451971,193.0,192.94,39.39130585]
[1755187873084,2.16451971,192.99,192.96,29.4675115]
[1755187873260,2.16451971,193.05,192.99,15.10621557]
[1755187873579,2.16451971,193.08,193.01,15.10621557]
[1755187873781,2.16451971,193.07,193.03,24.28509028]
[1755187873981,2.16451971,193.1,193.06,24.28509028]
[1755187874187,1e-08,193.14,193.09,24.28509028]
[1755187874365,1e-08,193.14,193.12,24.28509028]
[1755187874574,1e-08,193.14,193.13,69.60509028]
[1755187874779,2.16451971,193.13,193.08,26.0]
[1755187874972,2.16451971,193.13,193.09,69.56509028]
[1755187875156,2.16451971,193.13,193.1,5.1786639]
[1755187875361,2.16451971,193.13,193.06,31.17973686]
[1755187875678,24.28509028,193.1,193.04,24.28509028]
[1755187875860,5.1776457,193.14,193.03,5.18054188]
[1755187875861,2.16451971,193.07,193.03,5.18054188]
[1755187876055,2.16451971,193.08,193.03,5.18054188]
[1755187876259,2.86451971,193.07,193.04,45.2]
[1755187876628,26.44960999,193.05,193.04,45.2]
[1755187876888,2.16451971,193.02,193.0,45.2]
[1755187877071,2.16451971,193.02,192.94,15.539613]
[1755187877072,2.16451971,192.99,192.94,15.539613]
[1755187877272,25.508616,193.01,192.94,15.539613]
[1755187877273,2.16451971,192.97,192.95,45.14]
[1755187877467,24.98509028,192.98,192.95,45.14]
[1755187877468,2.16451971,192.98,192.95,45.14]
[1755187877773,2.16451971,192.97,192.95,45.14]
[1755187878086,2.16451971,192.97,192.87,13.68157945]
[1755187878289,2.16451971,192.93,192.88,39.82872828]
[1755187878481,2.16451971,192.92,192.88,45.1]
[1755187878783,2.16451971,192.95,192.9,24.28509028]
[1755187879190,2.16451971,192.95,192.91,5.18376444]
[1755187879396,2.16451971,192.92,192.91,5.18376444]
[1755187879684,2.16451971,192.92,192.91,50.24376444]
[1755187879900,2.16451971,192.93,192.91,74.52885472]
[1755187880060,2.16451971,192.93,192.92,45.0]
[1755187880261,2.86451971,192.93,192.92,45.0]
[1755187880486,2.16451971,192.92,192.91,45.0]
[1755187880695,2.86451971,192.92,192.91,45.0]
[1755187881103,2.16451971,192.86,192.81,50.24556055]
[1755187881298,2.16451971,192.87,192.84,44.96]
[1755187881504,2.16451971,192.86,192.84,44.96]
[1755187881706,2.16451971,192.87,192.84,69.24509028]
[1755187881896,2.16451971,192.9,192.86,24.28509028]
[1755187882096,2.16451971,192.87,192.84,44.96]
[1755187882508,2.16451971,192.85,192.84,44.96]
[1755187882695,2.16451971,192.85,192.82,5.186184]
[1755187882895,27.14960999,192.85,192.84,45.0]
[1755187883426,2.16451971,192.84,192.82,44.98]
[1755187883615,2.16451971,192.86,192.83,69.24509028]
[1755187883795,2.16451971,192.86,192.84,44.96]
[1755187884153,2.16451971,192.86,192.85,24.28509028]
[1755187884287,2.16451971,192.87,192.85,24.28509028]
[1755187884494,2.16451971,192.89,192.86,24.28509028]
[1755187884714,2.16451971,192.87,192.84,44.96]
[1755187884899,2.16451971,192.84,192.81,24.31509028]
[1755187885106,2.16451971,192.84,192.83,5.18591505]
[1755187885288,2.16451971,192.84,192.83,29.47100533]
[1755187885493,2.16451971,192.84,192.83,5.18591505]
[1755187886022,2.16451971,192.87,192.83,29.47100533]
[1755187886188,2.16451971,192.84,192.83,29.47100533]
[1755187886388,2.16451971,192.84,192.83,5.18591505]
[1755187886594,2.16451971,192.87,192.83,29.47100533]
[1755187886809,2.16451971,192.86,192.85,24.28509028]
[1755187886997,2.16451971,192.86,192.85,44.84]
[1755187887203,2.86451971,192.86,192.85,44.84]
[1755187888008,2.16451971,192.82,192.81,0.03]
[1755187888232,2.16451971,192.82,192.81,49.97645298]
[1755187888538,2.16451971,192.84,192.81,74.26154326]
[1755187888717,2.16451971,192.83,192.81,49.97645298]
[1755187889035,24.28509028,192.88,192.81,49.97645298]
[1755187889036,2.16451971,192.82,192.81,49.97645298]
[1755187889224,2.16451971,192.84,192.81,74.26154326]
[1755187889421,2.16451971,192.82,192.81,49.97645298]
[1755187889750,2.16451971,192.82,192.81,74.26154326]
[1755187890038,2.16451971,192.82,192.81,74.20154326]
[1755187890212,0.7,192.86,192.81,74.20154326]
[1755187890213,2.16451971,192.85,192.81,74.20154326]
[1755187890411,2.16451971,192.84,192.82,24.28509028]
[1755187890837,0.7,192.86,192.81,18.18258544]
[1755187890838,2.16451971,192.86,192.81,18.18258544]
[1755187891048,2.16451971,192.83,192.82,44.62]
[1755187891340,2.16451971,192.83,192.82,68.88509028]
[1755187891536,2.85451971,192.83,192.82,44.6]
[1755187892232,2.16451971,192.83,192.82,68.88509028]
[1755187892528,2.16451971,192.83,192.81,5.21644442]
[1755187892529,2.16451971,192.82,192.81,0.03]
[1755187892943,2.16451971,192.82,192.81,18.61504041]
[1755187893111,2.16451971,192.82,192.81,23.80149339]
[1755187893515,2.16451971,192.82,192.81,54.85149339]
[1755187893720,2.16451971,192.85,192.81,67.81762585]
[1755187893948,2.16451971,192.86,192.84,18.58504041]
[1755187894240,2.16451971,192.86,192.85,44.46]
[1755187894627,2.16451971,192.82,192.81,0.03]
[1755187894828,2.16451971,192.82,192.81,63.05504041]
[1755187895022,2.16451971,192.82,192.81,44.47]
[1755187895339,2.16451971,192.82,192.81,63.03504041]
[1755187895537,2.16451971,192.85,192.81,99.99149339]
[1755187895742,2.16451971,192.85,192.84,49.63504041]
[1755187895958,2.16451971,192.85,192.84,94.01504041]
[1755187896246,2.16451971,192.85,192.84,94.03504041]
[1755187896737,2.16451971,192.87,192.84,94.03504041]
[1755187896945,2.16451971,192.9,192.86,49.63504041]
[1755187897131,2.16451971,192.9,192.89,49.63504041]
[1755187897337,2.16451971,192.91,192.89,54.81934234]
[1755187897650,0.69,192.97,192.83,15.10621557]
[1755187897651,2.16451971,192.89,192.85,31.05]
[1755187897835,2.16451971,192.87,192.86,44.3]
[1755187898033,2.16451971,192.87,192.81,0.03]
[1755187898343,5.18377612,192.91,192.81,0.03]
[1755187898344,2.16451971,192.82,192.81,0.03]
[1755187898644,2.16451971,192.82,192.81,5.21645298]
[1755187898869,2.16451971,192.82,192.81,23.80149339]
[1755187899217,2.16451971,192.84,192.81,23.80149339]
[1755187899524,2.16451971,192.86,192.83,49.63504041]
[1755187899750,2.16451971,192.86,192.85,18.58504041]
[1755187900040,2.16451971,192.82,192.81,0.03]
[1755187900222,2.16451971,192.82,192.81,68.02149339]
[1755187900543,2.85451971,192.82,192.81,0.03]
[1755187900756,2.16451971,192.78,192.77,0.03]
[1755187901052,2.85451971,192.78,192.77,0.03]
[1755187901212,2.16451971,192.78,192.77,0.03]
[1755187902041,26.6268202,192.78,192.77,0.03]
[1755187902348,21.43956012,192.78,192.77,0.03]
[1755187902719,26.6268202,192.78,192.77,0.03]
[1755187902937,2.85451971,192.78,192.77,0.03]
[1755187903129,2.16451971,192.78,192.77,0.03]
[1755187903327,26.6268202,192.78,192.77,0.03]
[1755187903939,2.85451971,192.78,192.77,0.03]
[1755187904130,2.16451971,192.78,192.77,0.03]
[1755187904855,2.16451971,192.78,192.77,45.47]
[1755187905434,27.15034592,192.78,192.77,0.03]
[1755187905657,2.85451971,192.78,192.77,0.03]
[1755187906031,2.16451971,192.78,192.77,0.03]
[1755187906254,2.16451971,192.78,192.77,23.80256958]
[1755187906455,2.16451971,192.82,192.77,37.49139252]
[1755187906761,2.16451971,192.8,192.78,45.38]
[1755187906941,12.95673944,192.95,192.79,0.72]
[1755187906942,2.16451971,192.83,192.79,0.72]
[1755187907140,2.16451971,192.85,192.8,0.72]
[1755187907338,2.16451971,192.82,192.81,0.72]
[1755187907537,2.16451971,192.88,192.81,0.72]
[1755187907746,2.16451971,192.89,192.87,18.58504041]
[1755187908054,2.16451971,192.93,192.88,64.62504041]
[1755187908353,2.16451971,192.91,192.89,45.3]
[1755187908653,2.16451971,192.91,192.79,44.08942371]
[1755187908654,2.16451971,192.91,192.9,63.88504041]
[1755187908851,2.16451971,192.91,192.9,63.86504041]
[1755187909056,2.16451971,192.9,192.85,26.0]
[1755187909262,2.16451971,192.9,192.89,23.76934234]
[1755187909752,2.16451971,192.93,192.89,23.76934234]
[1755187909958,2.16451971,192.93,192.92,18.58504041]
[1755187910137,2.16451971,192.94,192.92,18.58504041]
[1755187910337,2.16451971,192.94,192.93,18.58504041]
[1755187910559,2.16451971,192.91,192.9,45.22]
[1755187910750,2.16451971,192.91,192.9,63.80504041]
[1755187910946,2.16451971,192.94,192.88,5.18453814]
[1755187911252,2.16451971,192.88,192.81,18.87258544]
[1755187911434,2.16451971,192.83,192.82,45.1]
[1755187911638,2.16451971,192.83,192.81,5.18645298]
[1755187911845,2.16451971,192.83,192.82,45.1]
[1755187912455,2.16451971,192.83,192.79,18.58504041]
[1755187912761,2.16451971,192.81,192.8,45.04]
[1755187913260,2.16451971,192.81,192.8,63.62504041]
[1755187913462,2.16451971,192.79,192.77,0.03]
[1755187913759,3.37804543,192.78,192.77,0.03]
[1755187913962,2.16451971,192.76,192.75,0.03]
[1755187914183,20.74956012,192.76,192.75,0.03]
[1755187914356,2.85451971,192.76,192.75,0.03]
[1755187914567,3.37804543,192.76,192.75,0.03]
[1755187915061,2.16451971,192.76,192.75,0.03]
[1755187915645,2.85451971,192.76,192.75,0.03]
[1755187915960,2.16451971,192.76,192.75,0.03]
[1755187917135,2.16451971,192.76,192.75,18.61504041]
[1755187917340,2.16451971,192.76,192.75,18.11504041]
[1755187917650,2.16451971,192.77,192.75,23.30310785]
[1755187917964,2.16451971,192.76,192.75,5.18806744]
[1755187918679,2.16451971,192.75,192.73,0.03]
[1755187918844,2.16451971,192.74,192.73,0.03]
[1755187920157,2.16451971,192.74,192.73,18.61504041]
[1755187920361,2.16451971,192.76,192.73,18.61504041]
[1755187920558,2.16451971,192.77,192.74,18.58504041]
[1755187920870,2.16451971,192.74,192.73,0.03]
[1755187921478,2.16451971,192.76,192.73,23.80364623]
[1755187921656,2.16451971,192.76,192.75,18.58504041]
[1755187922049,2.16451971,192.76,192.73,5.21860582]
[1755187922248,2.16451971,192.76,192.75,18.58504041]
[1755187922653,2.16451971,192.77,192.75,18.58504041]
[1755187922850,2.16451971,192.79,192.76,63.89504041]
[1755187923052,2.16451971,192.78,192.76,44.64]
[1755187923462,2.16451971,192.77,192.76,49.82779829]
[1755187923778,2.16451971,192.8,192.76,276.26729403]
[1755187923974,2.16451971,192.8,192.76,275.59729403]
[1755187924222,2.16451971,192.78,192.76,262.54779829]
[1755187924478,2.16451971,192.79,192.77,18.58504041]
[1755187924691,2.16451971,192.79,192.78,18.58504041]
[1755187925167,2.16451971,192.82,192.78,18.58504041]
[1755187925366,2.16451971,192.82,192.81,18.58504041]
[1755187925581,2.16451971,192.85,192.81,68.94149339]
[1755187925789,0.06,192.87,192.84,18.58504041]
[1755187926084,0.06,192.87,192.86,18.58504041]
[1755187926496,2.22451971,192.87,192.86,18.58504041]
[1755187926873,0.06,192.87,192.86,18.58504041]
[1755187927074,0.06,192.87,192.81,70.08485036]
[1755187927075,2.16451971,192.86,192.81,5.18645298]
[1755187927276,2.16451971,192.83,192.81,49.58645298]
[1755187927504,2.16451971,192.83,192.82,23.77122441]
[1755187927715,2.16451971,192.83,192.81,44.4]
[1755187927886,2.16451971,192.82,192.81,44.4]
[1755187928800,2.16451971,192.82,192.81,49.58645298]
[1755187928987,2.16451971,192.82,192.81,68.17149339]
[1755187929801,2.16451971,192.82,192.81,18.58504041]
[1755187930174,2.16451971,192.82,192.81,23.77149339]
[1755187930374,2.16451971,192.8,192.79,49.42699102]
[1755187930576,2.16451971,192.81,192.79,68.01203143]
[1755187930781,2.16451971,192.82,192.8,18.58504041]
[1755187931001,2.16451971,192.82,192.81,18.58504041]
[1755187931180,2.16451971,192.84,192.81,19.25504041]
[1755187931378,2.16451971,192.85,192.83,18.58504041]
[1755187931579,2.22451971,192.87,192.84,24.44068654]
[1755187931791,0.06,192.87,192.86,18.58504041]
[1755187932308,0.06,192.87,192.86,19.25504041]
[1755187932999,2.16451971,192.93,192.86,60.36125598]
[1755187933310,0.2,193.01,192.92,18.58504041]
[1755187933311,2.16451971,192.96,192.92,18.58504041]
[1755187933606,2.16451971,192.94,192.93,49.22322707]
[1755187933795,2.16451971,192.94,192.93,67.80826748]
[1755187934103,2.16451971,192.95,192.93,67.80826748]
[1755187934290,2.16451971,192.93,192.85,0.67]
[1755187934491,2.16451971,192.88,192.81,0.67]
[1755187934703,2.16451971,192.87,192.82,44.02]
[1755187935080,2.16451971,192.87,192.83,0.67]
[1755187935081,2.22451971,192.87,192.83,0.67]
[1755187935284,0.06,192.87,192.85,26.0]
[1755187935618,0.06,192.87,192.86,67.77014877]
[1755187935903,2.16451971,192.94,192.86,68.44014877]
[1755187936084,2.16451971,192.94,192.93,18.58504041]
[1755187936281,2.16451971,192.94,192.92,43.94]
[1755187936282,2.16451971,192.93,192.92,43.94]
[1755187936682,2.16451971,192.93,192.92,62.52504041]
[1755187937190,2.92451971,192.93,192.92,43.94]
[1755187937388,2.22451971,192.93,192.92,62.52504041]
[1755187937707,2.22451971,192.93,192.87,5.18483952]
[1755187937708,2.16451971,192.88,192.87,5.18483952]
[1755187937909,2.16451971,192.88,192.87,43.84]
[1755187938082,2.16451971,192.88,192.87,62.42504041]
[1755187938401,2.16451971,192.88,192.87,43.84]
[1755187938587,2.16451971,192.88,192.87,62.42504041]
[1755187939227,2.16451971,192.88,192.86,43.8]
[1755187939228,2.16451971,192.87,192.86,43.8]
[1755187939511,2.16451971,192.85,192.84,48.96564613]
[1755187939674,2.16451971,192.85,192.84,62.36504041]
[1755187939879,2.16451971,192.88,192.84,67.55068654]
[1755187940091,2.16451971,192.86,192.84,48.96564613]
[1755187940284,2.16451971,192.87,192.85,18.58504041]
[1755187940475,2.16451971,192.86,192.84,5.18564613]
[1755187940683,2.16451971,192.87,192.85,62.34504041]
[1755187940898,2.16451971,192.87,192.86,18.58504041]
[1755187941103,2.16451971,192.86,192.85,43.76]
[1755187941499,2.86451971,192.86,192.85,43.76]
[1755187941698,2.16451971,192.86,192.85,62.34504041]
[1755187942002,2.16451971,192.86,192.85,43.76]
[1755187942204,2.86451971,192.86,192.85,43.76]
[1755187942377,2.16451971,192.86,192.85,62.34504041]
[1755187942584,2.16451971,192.83,192.82,18.58504041]
[1755187942783,2.16451971,192.78,192.75,5.21800998]
[1755187943016,2.16451971,192.77,192.75,0.03]
[1755187943310,2.16451971,192.76,192.75,5.21806744]
[1755187943688,2.16451971,192.77,192.75,23.80310785]
[1755187943882,2.16451971,192.76,192.75,5.21806744]
[1755187944084,2.16451971,192.76,192.75,0.03]
[1755187944791,2.86451971,192.76,192.75,18.61504041]
[1755187945114,2.16451971,192.76,192.75,18.61504041]
[1755187945605,2.16451971,192.76,192.75,23.80310785]
[1755187945980,5.18565581,192.84,192.75,23.80310785]
[1755187945981,2.16451971,192.77,192.75,23.80310785]
[1755187946186,2.16451971,192.77,192.76,18.58504041]
[1755187946490,2.16451971,192.78,192.76,18.58504041]
[1755187946695,2.16451971,192.78,192.77,43.62]
[1755187946888,2.16451971,192.78,192.77,62.20504041]
[1755187947513,2.16451971,192.76,192.75,5.21806744]
[1755187947725,2.16451971,192.76,192.75,23.80310785]
[1755187948005,2.16451971,192.76,192.75,5.21806744]
[1755187948215,2.16451971,192.76,192.75,23.80310785]
[1755187948387,2.16451971,192.77,192.75,23.80310785]
[1755187948583,2.16451971,192.81,192.76,62.83504041]
[1755187948788,2.16451971,192.82,192.81,79.9]
[1755187949085,2.16451971,192.86,192.81,274.96504041]
[1755187949301,2.16451971,192.86,192.85,18.58504041]
[1755187949521,2.16451971,192.87,192.85,98.48504041]
[1755187949689,2.16451971,192.87,192.84,43.6]
[1755187949690,2.16451971,192.87,192.86,23.77014877]
[1755187950010,2.86451971,192.87,192.85,23.77035896]
[1755187950190,2.16451971,192.81,192.77,0.67]
[1755187950389,2.16451971,192.8,192.78,18.58504041]
[1755187950591,2.16451971,192.8,192.79,62.16504041]
[1755187951312,2.16451971,192.79,192.78,18.58504041]
[1755187951517,2.16451971,192.76,192.75,0.03]
[1755187951695,2.16451971,192.76,192.75,67.42303306]
[1755187951891,2.16451971,192.76,192.75,23.80303306]
[1755187952099,2.16451971,192.76,192.75,67.40303306]
[1755187952291,2.16451971,192.76,192.75,67.38303306]
[1755187953198,2.16451971,192.78,192.75,67.38303306]
[1755187953404,2.16451971,192.78,192.77,18.58504041]
[1755187953613,2.16451971,192.79,192.77,67.35256958]
[1755187953824,2.16451971,192.8,192.78,18.58504041]
[1755187954114,2.16451971,192.8,192.79,62.06504041]
[1755187955531,2.16451971,192.76,192.75,0.03]
[1755187955741,2.82451971,192.76,192.75,0.03]
[1755187955916,2.82451971,192.76,192.75,43.41]
[1755187956103,2.16451971,192.76,192.75,61.99504041]
[1755187956308,2.16451971,192.76,192.75,43.41]
[1755187956918,2.16451971,192.76,192.75,61.99504041]
[1755187957215,2.16451971,192.76,192.75,0.03]
[1755187957415,2.82451971,192.76,192.75,0.03]
[1755187957840,8.012318,192.76,192.75,0.03]
[1755187958011,8.012318,192.76,192.73,0.03]
[1755187958012,2.16451971,192.74,192.73,0.03]
[1755187958204,2.16451971,192.72,192.71,0.03]
[1755187958525,21.93308584,192.72,192.71,0.03]
[1755187959119,2.16451971,192.72,192.71,0.03]
[1755187959523,2.16451971,192.72,192.71,23.80418472]
[1755187959716,2.16451971,192.73,192.71,98.15418472]
[1755187959903,2.16451971,192.74,192.72,18.58504041]
[1755187960100,2.16451971,192.74,192.73,18.58504041]
[1755187960508,2.16451971,192.75,192.73,49.63504041]
[1755187960716,2.16451971,192.78,192.74,92.87504041]
[1755187960906,2.16451971,192.78,192.77,18.58504041]
[1755187961112,2.16451971,192.79,192.77,61.80504041]
[1755187961312,2.16451971,192.8,192.78,18.58504041]
[1755187961532,2.16451971,192.81,192.79,18.58504041]
[1755187961710,2.16451971,192.81,192.8,43.18]
[1755187962049,2.16451971,192.73,192.71,0.03]
[1755187962208,21.40956012,192.72,192.71,0.03]
[1755187962537,2.82451971,192.72,192.71,0.03]
[1755187963133,2.16451971,192.72,192.71,23.80418472]
[1755187963402,2.16451971,192.73,192.71,23.80418472]
[1755187963641,2.16451971,192.73,192.72,61.70504041]
[1755187963823,2.16451971,192.73,192.72,66.89391546]
[1755187964027,2.16451971,192.72,192.71,18.61504041]
[1755187964420,2.16451971,192.72,192.71,0.03]
[1755187964741,2.16451971,192.77,192.71,37.49704549]
[1755187964943,2.16451971,192.77,192.76,18.58504041]
[1755187965147,2.16451971,192.77,192.73,43.06]
[1755187965310,2.16451971,192.74,192.73,61.64504041]
[1755187965623,2.16451971,192.74,192.73,141.54504041]
[1755187965936,2.16451971,192.74,192.73,66.83364623]
[1755187966322,2.16451971,192.74,192.73,48.24860582]
[1755187966523,0.66,192.79,192.73,292.60516078]
[1755187966524,2.16451971,192.77,192.73,292.60516078]
[1755187966744,0.66,192.83,192.76,18.58504041]
[1755187966916,19.10856613,192.82,192.76,79.9]
[1755187967135,19.24504041,192.81,192.76,79.9]
[1755187967317,0.66,192.81,192.77,18.58504041]
[1755187967839,26.0,192.9,192.77,18.58504041]
[1755187967840,1.18352572,192.85,192.77,18.15635211]
[1755187968011,0.66,192.85,192.82,18.58504041]
[1755187968339,18.58504041,192.88,192.78,43.66]
[1755187968340,0.66,192.84,192.79,18.58504041]
[1755187968515,18.58504041,192.86,192.78,42.94]
[1755187968516,19.76856613,192.83,192.78,42.94]
[1755187968713,19.76856613,192.83,192.77,5.18752917]
[1755187968714,0.66,192.82,192.77,5.18752917]
[1755187969044,0.66,192.82,192.77,66.65256958]
[1755187969244,0.66,192.86,192.77,48.06752917]
[1755187969424,19.24504041,192.86,192.8,18.58504041]
[1755187969620,0.66,192.86,192.82,18.58504041]
[1755187969816,0.66,192.85,192.81,23.77149339]
[1755187970019,0.66,192.84,192.81,18.58504041]
[1755187970217,0.66,192.84,192.8,66.63173226]
[1755187970442,0.52352572,192.86,192.81,18.58504041]
[1755187970645,18.58504041,192.84,192.78,23.77204643]
[1755187970851,19.76856613,192.83,192.78,5.18700602]
[1755187971143,18.58504041,192.81,192.75,0.03]
[1755187971349,18.58504041,192.81,192.75,18.61504041]
[1755187971643,0.52352572,192.8,192.75,18.61504041]
[1755187971840,0.52352572,192.8,192.75,23.80305805]
[1755187972008,0.66,192.79,192.75,0.03]
[1755187972319,1.18352572,192.78,192.75,0.03]
[1755187972525,19.24504041,192.77,192.75,0.03]
[1755187972721,19.76856613,192.76,192.75,0.03]
[1755187973306,1.18352572,192.76,192.75,0.03]
[1755187973625,19.76856613,192.76,192.75,0.03]
[1755187973819,24.95636442,192.76,192.75,0.03]
[1755187974628,0.52352572,192.78,192.75,0.03]
[1755187974832,1.18352572,192.78,192.75,0.03]
[1755187975046,0.66,192.77,192.75,0.03]
[1755187976342,1.18352572,192.77,192.75,0.03]
[1755187976547,0.66,192.76,192.75,0.03]
[1755187976842,19.24504041,192.76,192.75,0.03]
[1755187978011,24.4328387,192.76,192.75,0.03]
[1755187978727,5.84779829,192.76,192.75,0.03]
[1755187978923,24.4328387,192.76,192.75,0.03]
[1755187979647,24.4328387,192.76,192.73,0.03]
[1755187979648,39.53905427,192.76,192.73,0.03]
[1755187979844,15.10621557,192.74,192.71,0.03]
[1755187980054,18.58504041,192.72,192.58,0.72]
[1755187980344,18.58504041,192.7,192.64,18.58504041]
[1755187980716,0.52352572,192.69,192.63,0.72]
[1755187980931,19.10856613,192.69,192.62,18.58504041]
[1755187981453,24.29827585,192.69,192.62,18.58504041]
[1755187982240,18.58504041,192.67,192.61,5.19183842]
[1755187982421,0.52352572,192.76,192.66,18.58504041]
[1755187982629,0.52352572,192.76,192.68,18.58504041]
[1755187982943,0.52352572,192.76,192.68,0.72]
[1755187983248,0.52352572,192.76,192.71,18.58504041]
[1755187983424,0.52352572,192.76,192.71,23.77405415]
[1755187983628,0.52352572,192.76,192.72,19.30504041]
[1755187983826,0.52352572,192.77,192.7,5.1894007]
[1755187984153,18.58504041,192.74,192.68,23.77499266]
[1755187984450,19.10856613,192.73,192.67,141.34504041]
[1755187984634,19.76856613,192.73,192.67,61.44504041]
[1755187984958,0.66,192.72,192.63,18.58504041]
[1755187985127,18.58504041,192.69,192.63,18.58504041]
[1755187985328,18.58504041,192.71,192.65,23.77580085]
[1755187985533,18.58504041,192.7,192.63,50.35504041]
[1755187985734,1.18352572,192.76,192.67,18.58504041]
[1755187985954,18.58504041,192.75,192.69,18.58504041]
[1755187986263,26.0,192.7,192.56,0.03]
[1755187986430,15.10621557,192.73,192.56,0.03]
[1755187986431,26.0,192.66,192.56,0.03]
[1755187986629,1.18352572,192.65,192.56,0.03]
[1755187986832,0.52352572,192.65,192.62,0.03]
[1755187987124,0.52352572,192.65,192.63,0.72]
[1755187987350,5.18995225,192.68,192.62,0.03]
[1755187987539,1.18352572,192.67,192.62,0.03]
[1755187987742,0.52352572,192.67,192.62,0.03]
[1755187987925,0.66,192.66,192.62,0.03]
[1755187988128,1.18352572,192.65,192.62,0.03]
[1755187988427,1.18352572,192.65,192.56,0.03]
[1755187988428,26.0,192.62,192.56,0.03]
[1755187988646,5.15525005,192.67,192.6,0.03]
[1755187988647,0.52352572,192.61,192.6,0.03]
[1755187988848,19.76856613,192.61,192.6,0.03]
[1755187989051,1.18352572,192.61,192.6,0.03]
[1755187989299,19.76856613,192.61,192.6,0.03]
[1755187989561,1.18352572,192.61,192.6,0.03]
[1755187989761,0.66,192.64,192.6,0.03]
[1755187989929,18.58504041,192.61,192.6,0.03]
[1755187990125,1.18352572,192.61,192.47,44.2]
[1755187990358,18.58504041,192.54,192.47,49.39559766]
[1755187990532,1.18352572,192.58,192.52,18.58504041]
[1755187990734,0.52352572,192.64,192.53,0.72]
[1755187990957,1.18352572,192.64,192.53,0.72]
[1755187991127,0.66,192.63,192.53,0.72]
[1755187991459,0.52352572,192.68,192.62,18.58504041]
[1755187991669,0.58352572,192.71,192.63,45.04]
[1755187991866,18.64504041,192.71,192.63,0.72]
[1755187992036,0.52352572,192.7,192.63,0.72]
[1755187992226,18.58504041,192.67,192.59,0.72]
[1755187992561,0.52352572,192.66,192.56,0.72]
[1755187992741,0.52352572,192.7,192.59,0.72]
[1755187992937,18.58504041,192.67,192.6,18.58504041]
[1755187993175,1.18352572,192.7,192.59,0.72]
[1755187993176,1.18352572,192.7,192.62,18.58504041]
[1755187993377,0.52352572,192.7,192.63,18.58504041]
[1755187993591,0.06,192.71,192.64,0.72]
[1755187993793,0.06,192.71,192.7,18.58504041]
[1755187993960,0.06,192.71,192.7,19.30504041]
[1755187994374,0.06,192.71,192.7,18.58504041]
[1755187994591,0.06,192.71,192.56,12.70074852]
[1755187994766,0.06,192.71,192.67,18.58504041]
[1755187994961,0.06,192.71,192.69,18.58504041]
[1755187995165,18.58504041,192.7,192.61,26.0]
[1755187995402,18.58504041,192.68,192.62,44.26]
[1755187995566,18.58504041,192.64,192.58,18.61504041]
[1755187995930,19.10856613,192.63,192.58,0.03]
[1755187996196,0.66,192.62,192.58,0.03]
[1755187996402,18.58504041,192.6,192.58,0.03]